[Event "Championnat d'Europe de Blitz"]
[Date "2024.12.09"]
[White "Djurovic, Peko"]
[Black "Baskin, Robert"]
[WhiteElo "2253"]
[BlackElo "2442"]
[Round "9.40"]
[Result "1-0"]
[TimeControl "180+2"]

1. e4 {[%emt 00:00:02] [%clk 00:03:02]} c5 {[%clk 00:03:04]} 2. Nf3 {[%emt
00:00:01] [%clk 00:03:02]} e6 {[%emt 00:00:01] [%clk 00:03:05]} 3. d4 {[%emt
00:00:02] [%clk 00:03:02]} cxd4 {[%clk 00:03:06]} 4. Nxd4 {[%emt 00:00:01] [%clk
00:03:03]} Nc6 {[%emt 00:00:02] [%clk 00:03:07]} 5. Nc3 {[%emt 00:00:02] [%clk
00:03:02]} Qc7 {[%emt 00:00:02] [%clk 00:03:08]} 6. Be3 {[%emt 00:00:02] [%clk
00:03:02]} a6 {[%emt 00:00:01] [%clk 00:03:09]} 7. Qf3 {[%emt 00:00:07] [%clk
00:02:56]} h5 {[%emt 00:00:22] [%clk 00:02:49]} 8. Nxc6 {[%emt 00:00:36] [%clk
00:02:23]} bxc6 {[%emt 00:00:02] [%clk 00:02:49]} 9. O-O-O {[%emt 00:00:02]
[%clk 00:02:22]} Nf6 {[%emt 00:00:20] [%clk 00:02:31]} 10. h3 {[%emt 00:00:20]
[%clk 00:02:04]} Bd6 {[%emt 00:00:09] [%clk 00:02:25]} 11. Bc4 {[%emt 00:00:13]
[%clk 00:01:53]} Rb8 {[%emt 00:00:21] [%clk 00:02:06]} 12. Bb3 {[%emt 00:00:01]
[%clk 00:01:54]} Be5 {[%emt 00:00:10] [%clk 00:01:58]} 13. Bg5 {[%emt 00:00:07]
[%clk 00:01:49]} c5 {[%emt 00:00:12] [%clk 00:01:48]} 14. Qd3 {[%emt 00:00:21]
[%clk 00:01:29]} Bb7 {[%emt 00:00:10] [%clk 00:01:40]} 15. f3 {[%emt 00:00:04]
[%clk 00:01:27]} h4 {[%emt 00:00:18] [%clk 00:01:25]} 16. Kb1 {[%emt 00:00:04]
[%clk 00:01:24]} Nh5 {[%emt 00:00:22] [%clk 00:01:05]} 17. Rhe1 {[%emt 00:00:02]
[%clk 00:01:24]} Nf4 {[%emt 00:00:03] [%clk 00:01:04]} 18. Bxf4 {[%emt 00:00:07]
[%clk 00:01:19]} Bxf4 {[%emt 00:00:01] [%clk 00:01:05]} 19. Nd5 {[%emt 00:00:09]
[%clk 00:01:11]} Bxd5 {[%emt 00:00:30] [%clk 00:00:37]} 20. exd5 {[%clk
00:01:12]} O-O {[%emt 00:00:06] [%clk 00:00:33]} 21. a3 {[%clk 00:01:14]} Be5
{[%emt 00:00:03] [%clk 00:00:32]} 22. Qe4 {[%emt 00:00:12] [%clk 00:01:04]} Bf6
{[%clk 00:00:33]} 23. f4 {[%emt 00:00:03] [%clk 00:01:02]} c4 {[%emt 00:00:02]
[%clk 00:00:33]} 24. Qxc4 {[%emt 00:00:04] [%clk 00:01:01]} Qxc4 {[%emt
00:00:01] [%clk 00:00:35]} 25. Bxc4 {[%clk 00:01:02]} Rxb2+ {[%clk 00:00:36]}
26. Kc1 {[%clk 00:01:03]} Rc8 {[%emt 00:00:17] [%clk 00:00:20]} 27. Re4 {[%emt
00:00:09] [%clk 00:00:57]} Rcb8 {[%clk 00:00:21]} 28. Bb3 {[%emt 00:00:06] [%clk
00:00:52]} g6 {[%emt 00:00:15] [%clk 00:00:09]} 29. Ra4 {[%emt 00:00:05] [%clk
00:00:48]} Rb6 {[%clk 00:00:10]} 30. Rd3 {[%emt 00:00:09] [%clk 00:00:42]} Rd6
{[%emt 00:00:03] [%clk 00:00:09]} 31. Ra5 {[%emt 00:00:19] [%clk 00:00:25]} Kg7
{[%emt 00:00:03] [%clk 00:00:08]} 32. Rc5 {[%emt 00:00:02] [%clk 00:00:26]} Rb6
{[%emt 00:00:02] [%clk 00:00:08]} 33. Rc7 {[%emt 00:00:01] [%clk 00:00:26]} Rd6
{[%emt 00:00:02] [%clk 00:00:08]} 34. Rc5 {[%emt 00:00:05] [%clk 00:00:24]} Rb6
{[%emt 00:00:04] [%clk 00:00:06]} 35. d6 {[%emt 00:00:03] [%clk 00:00:22]} e5
{[%emt 00:00:03] [%clk 00:00:06]} 36. fxe5 {[%emt 00:00:03] [%clk 00:00:21]}
R2xb3 {[%emt 00:00:03] [%clk 00:00:05]} 37. cxb3 {[%emt 00:00:02] [%clk
00:00:21]} Bg5+ {[%clk 00:00:06]} 38. Kc2 {[%clk 00:00:22]} Rb8 {[%emt 00:00:01]
[%clk 00:00:06]} 39. Rc7 {[%emt 00:00:01] [%clk 00:00:23]} Rd8 {[%clk 00:00:07]}
40. Rd5 {[%emt 00:00:02] [%clk 00:00:23]} Bf4 {[%emt 00:00:01] [%clk 00:00:08]}
41. b4 {[%emt 00:00:01] [%clk 00:00:24]} Re8 {[%emt 00:00:02] [%clk 00:00:07]}
42. Rxd7 {[%emt 00:00:02] [%clk 00:00:24]} Bxe5 {[%emt 00:00:02] [%clk
00:00:08]} 43. Ra7 {[%emt 00:00:01] [%clk 00:00:25]} Rc8+ {[%emt 00:00:03] [%clk
00:00:07]} 44. Kd1 {[%emt 00:00:03] [%clk 00:00:23]} Bf6 {[%emt 00:00:03] [%clk
00:00:06]} 45. d7 {[%clk 00:00:25]} Rd8 {[%emt 00:00:03] [%clk 00:00:06]} 46.
Rc5 {[%emt 00:00:01] [%clk 00:00:25]} Kf8 {[%emt 00:00:02] [%clk 00:00:07]} 47.
Rc8 {[%clk 00:00:26]} Ke7 {[%emt 00:00:01] [%clk 00:00:08]} 48. Rxd8 {[%clk
00:00:27]} Kxd8 {[%clk 00:00:09]} 49. Rxa6 {[%emt 00:00:01] [%clk 00:00:28]} Be5
{[%clk 00:00:11]} 50. Ra7 {[%clk 00:00:29]} Bc7 {[%clk 00:00:12]} 51. Rxc7
{[%emt 00:00:03] [%clk 00:00:28]} Kxc7 {[%clk 00:00:13]} 52. Ke2 {[%clk
00:00:30]} Kxd7 {[%emt 00:00:02] [%clk 00:00:14]} 53. a4 {[%clk 00:00:31]} f5
{[%emt 00:00:02] [%clk 00:00:14]} 54. Ke3 {[%emt 00:00:02] [%clk 00:00:31]} g5
{[%clk 00:00:15]} 55. Kd4 {[%emt 00:00:03] [%clk 00:00:30]} Kd6 {[%clk
00:00:16]} 56. a5 {[%emt 00:00:01] [%clk 00:00:31]} g4 {[%emt 00:00:07] [%clk
00:00:10]} 57. Ke3 {[%emt 00:00:12] [%clk 00:00:22]} Ke5 {[%emt 00:00:05] [%clk
00:00:07]} 58. a6 {[%emt 00:00:01] [%clk 00:00:22]} f4+ {[%clk 00:00:09]} 1-0

[Site "Europe Echecs"]

[Event "Championnat d'Europe de Blitz"]
[Date "2024.12.09"]
[White "Stankovic, Milos"]
[Black "Dinev, Dejan"]
[WhiteElo "2462"]
[BlackElo "2209"]
[Round "9.41"]
[Result "1-0"]
[TimeControl "180+2"]

1. d4 {[%emt 00:00:02] [%clk 00:03:02]} Nf6 {[%emt 00:00:04] [%clk 00:03:01]} 2.
Nf3 {[%emt 00:00:02] [%clk 00:03:02]} e6 {[%emt 00:00:02] [%clk 00:03:02]} 3.
Bg5 {[%emt 00:00:02] [%clk 00:03:01]} Be7 {[%emt 00:00:02] [%clk 00:03:02]} 4.
Nbd2 {[%emt 00:00:03] [%clk 00:03:00]} d5 {[%emt 00:00:02] [%clk 00:03:03]} 5.
e3 {[%emt 00:00:04] [%clk 00:02:57]} c5 {[%emt 00:00:09] [%clk 00:02:57]} 6. c3
{[%emt 00:00:03] [%clk 00:02:56]} O-O {[%emt 00:00:03] [%clk 00:02:56]} 7. Bd3
{[%emt 00:00:02] [%clk 00:02:56]} Nbd7 {[%emt 00:00:09] [%clk 00:02:49]} 8. Qe2
{[%emt 00:00:05] [%clk 00:02:52]} b6 {[%emt 00:00:06] [%clk 00:02:46]} 9. h4
{[%emt 00:00:10] [%clk 00:02:43]} Bb7 {[%emt 00:00:03] [%clk 00:02:46]} 10. h5
{[%emt 00:00:02] [%clk 00:02:43]} Ne4 {[%emt 00:00:02] [%clk 00:02:46]} 11. Bf4
{[%emt 00:00:17] [%clk 00:02:27]} Ndf6 {[%emt 00:00:38]} 12. h6 {[%emt 00:00:03]
[%clk 00:02:23]} g6 {[%emt 00:00:01] [%clk 00:02:14]} 13. Ne5 {[%emt 00:00:07]
[%clk 00:02:18]} Nxd2 {[%emt 00:00:04] [%clk 00:02:12]} 14. Qxd2 {[%emt
00:00:04] [%clk 00:02:16]} Ne4 {[%emt 00:00:06] [%clk 00:02:08]} 15. Bxe4 {[%emt
00:00:30] [%clk 00:01:48]} dxe4 {[%emt 00:00:02] [%clk 00:02:09]} 16. dxc5
{[%emt 00:00:09] [%clk 00:01:41]} Qxd2+ {[%emt 00:00:07] [%clk 00:02:04]} 17.
Kxd2 {[%clk 00:01:42]} Bxc5 {[%emt 00:00:06] [%clk 00:02:00]} 18. Kc2 {[%emt
00:00:05] [%clk 00:01:40]} Ba6 {[%emt 00:00:06] [%clk 00:01:56]} 19. Rad1 {[%emt
00:00:09] [%clk 00:01:33]} f6 {[%emt 00:00:30] [%clk 00:01:28]} 20. Rd7 {[%emt
00:00:19] [%clk 00:01:15]} fxe5 {[%emt 00:00:33] [%clk 00:00:57]} 21. Rg7+
{[%emt 00:00:01] [%clk 00:01:16]} Kh8 {[%emt 00:00:01] [%clk 00:00:58]} 22. Bxe5
{[%clk 00:01:17]} Rxf2+ {[%clk 00:00:59]} 23. Kb3 {[%clk 00:01:19]} Rf5 {[%emt
00:00:06] [%clk 00:00:55]} 24. Rxa7+ {[%emt 00:00:02] [%clk 00:01:19]} 1-0

[Site "Europe Echecs"]

[Event "Championnat d'Europe de Blitz"]
[Date "2024.12.09"]
[White "Nikolovski, Nikola"]
[Black "Krasteva, Beloslava"]
[WhiteElo "2407"]
[BlackElo "2281"]
[Round "9.42"]
[Result "1/2-1/2"]
[TimeControl "180+2"]

1. f4 {[%emt 00:00:02] [%clk 00:03:02]} c5 {[%emt 00:00:02] [%clk 00:03:02]} 2.
Nf3 {[%emt 00:00:02] [%clk 00:03:03]} Nc6 {[%emt 00:00:02] [%clk 00:03:02]} 3.
e4 {[%emt 00:00:01] [%clk 00:03:04]} d5 {[%emt 00:00:14] [%clk 00:02:49]} 4.
exd5 {[%emt 00:00:01] [%clk 00:03:05]} Qxd5 {[%emt 00:00:02] [%clk 00:02:49]} 5.
Nc3 {[%emt 00:00:02] [%clk 00:03:05]} Qd8 {[%emt 00:00:05] [%clk 00:02:46]} 6.
Bb5 {[%emt 00:00:02] [%clk 00:03:06]} Bd7 {[%emt 00:00:17] [%clk 00:02:31]} 7.
Qe2 {[%emt 00:00:01] [%clk 00:03:06]} e6 {[%emt 00:00:11] [%clk 00:02:23]} 8. f5
{[%emt 00:00:01] [%clk 00:03:06]} Qe7 {[%emt 00:00:38] [%clk 00:01:47]} 9. fxe6
{[%emt 00:00:19] [%clk 00:02:50]} Qxe6 {[%emt 00:00:02] [%clk 00:01:46]} 10.
Qxe6+ {[%emt 00:00:08] [%clk 00:02:44]} Bxe6 {[%emt 00:00:16] [%clk 00:01:33]}
11. Ne5 {[%emt 00:00:36] [%clk 00:02:09]} Nge7 {[%emt 00:00:11] [%clk 00:01:24]}
12. Ne4 {[%emt 00:00:02] [%clk 00:02:09]} O-O-O {[%emt 00:00:05] [%clk
00:01:21]} 13. Bxc6 {[%emt 00:00:40] [%clk 00:01:31]} Nxc6 {[%emt 00:00:01]
[%clk 00:01:22]} 14. Nxc6 {[%emt 00:00:01] [%clk 00:01:32]} bxc6 {[%emt
00:00:01] [%clk 00:01:23]} 15. O-O {[%emt 00:00:02] [%clk 00:01:32]} Be7 {[%emt
00:00:07] [%clk 00:01:17]} 16. b3 {[%emt 00:00:08] [%clk 00:01:25]} c4 {[%emt
00:00:03] [%clk 00:01:17]} 17. Bb2 {[%emt 00:00:09] [%clk 00:01:18]} Rhg8 {[%emt
00:00:12] [%clk 00:01:07]} 18. Rae1 {[%emt 00:00:11] [%clk 00:01:09]} Bb4 {[%emt
00:00:17] [%clk 00:00:52]} 19. Re2 {[%emt 00:00:05] [%clk 00:01:07]} Bd5 {[%emt
00:00:09] [%clk 00:00:45]} 20. Nc3 {[%emt 00:00:19] [%clk 00:00:51]} Be6 {[%emt
00:00:07] [%clk 00:00:40]} 21. Rfe1 {[%emt 00:00:09] [%clk 00:00:44]} Bf5 {[%emt
00:00:13] [%clk 00:00:29]} 22. Ne4 {[%emt 00:00:37] [%clk 00:00:09]} cxb3 {[%emt
00:00:02] [%clk 00:00:30]} 23. cxb3 {[%emt 00:00:04] [%clk 00:00:06]} f6 {[%emt
00:00:13] [%clk 00:00:18]} 24. Kf2 {[%emt 00:00:01] [%clk 00:00:07]} Kb7 {[%emt
00:00:03] [%clk 00:00:18]} 25. Bc3 {[%emt 00:00:01] [%clk 00:00:08]} Be7 {[%emt
00:00:10] [%clk 00:00:09]} 26. Ng3 {[%emt 00:00:04] [%clk 00:00:06]} Bc5+ {[%emt
00:00:02] [%clk 00:00:10]} 27. d4 {[%emt 00:00:03] [%clk 00:00:05]} Bxd4+ {[%emt
00:00:06] [%clk 00:00:06]} 28. Bxd4 {[%emt 00:00:02] [%clk 00:00:05]} Rxd4
{[%emt 00:00:01] [%clk 00:00:07]} 29. Re7+ {[%emt 00:00:03] [%clk 00:00:04]} Kb6
{[%emt 00:00:01] [%clk 00:00:07]} 30. Ke3 {[%emt 00:00:03] [%clk 00:00:03]} Rd5
{[%emt 00:00:02] [%clk 00:00:07]} 31. Kf4 {[%emt 00:00:02] [%clk 00:00:03]} Bg6
{[%emt 00:00:02] [%clk 00:00:07]} 32. R1e2 {[%emt 00:00:02] [%clk 00:00:03]}
Rd4+ {[%emt 00:00:02] [%clk 00:00:07]} 33. Kf3 {[%clk 00:00:04]} h5 {[%emt
00:00:03] [%clk 00:00:06]} 34. Kf2 {[%emt 00:00:02] [%clk 00:00:04]} h4 {[%emt
00:00:01] [%clk 00:00:07]} 35. Nf1 {[%emt 00:00:02] [%clk 00:00:04]} Rf4+ {[%emt
00:00:05] [%clk 00:00:03]} 36. Kg1 {[%emt 00:00:03] [%clk 00:00:03]} Bd3 {[%emt
00:00:02] [%clk 00:00:04]} 37. Re1 {[%emt 00:00:02] [%clk 00:00:03]} Bxf1 {[%emt
00:00:02] [%clk 00:00:03]} 38. Rxf1 {[%clk 00:00:04]} Rxf1+ {[%emt 00:00:01]
[%clk 00:00:04]} 39. Kxf1 {[%clk 00:00:05]} g5 {[%emt 00:00:01] [%clk 00:00:05]}
40. Rf7 {[%emt 00:00:01] [%clk 00:00:06]} Rd8 {[%emt 00:00:02] [%clk 00:00:05]}
41. Rxf6 {[%emt 00:00:02] [%clk 00:00:05]} Rd2 {[%emt 00:00:02] [%clk 00:00:05]}
42. Rf5 {[%emt 00:00:02] [%clk 00:00:05]} Rxa2 {[%emt 00:00:02] [%clk 00:00:05]}
43. Rxg5 {[%clk 00:00:06]} h3 {[%emt 00:00:04] [%clk 00:00:04]} 44. gxh3 {[%emt
00:00:03] [%clk 00:00:05]} Rxh2 {[%emt 00:00:01] [%clk 00:00:04]} 45. Rg3 {[%emt
00:00:02] [%clk 00:00:04]} a5 {[%emt 00:00:02] [%clk 00:00:05]} 46. Ke1 {[%emt
00:00:02] [%clk 00:00:05]} Kb5 {[%emt 00:00:01] [%clk 00:00:05]} 47. Kd1 {[%emt
00:00:02] [%clk 00:00:04]} Kb4 {[%emt 00:00:02] [%clk 00:00:06]} 48. Kc1 {[%clk
00:00:05]} c5 {[%emt 00:00:02] [%clk 00:00:06]} 49. Kb1 {[%emt 00:00:01] [%clk
00:00:06]} a4 {[%emt 00:00:03] [%clk 00:00:05]} 50. bxa4 {[%emt 00:00:01] [%clk
00:00:07]} Kxa4 {[%emt 00:00:01] [%clk 00:00:06]} 51. Kc1 {[%emt 00:00:01] [%clk
00:00:07]} Kb4 {[%emt 00:00:02] [%clk 00:00:07]} 52. Kb1 {[%emt 00:00:02] [%clk
00:00:07]} c4 {[%emt 00:00:01] [%clk 00:00:08]} 53. Kc1 {[%emt 00:00:01] [%clk
00:00:07]} c3 {[%emt 00:00:03] [%clk 00:00:07]} 54. Rg8 {[%emt 00:00:02] [%clk
00:00:07]} Rxh3 {[%emt 00:00:03] [%clk 00:00:06]} 55. Rb8+ {[%emt 00:00:02]
[%clk 00:00:07]} Kc4 {[%emt 00:00:03] [%clk 00:00:06]} 56. Rc8+ {[%clk
00:00:08]} Kd3 {[%emt 00:00:02] [%clk 00:00:05]} 57. Rd8+ {[%emt 00:00:01] [%clk
00:00:09]} Kc4 {[%emt 00:00:01] [%clk 00:00:06]} 1/2-1/2

[Site "Europe Echecs"]

[Event "Championnat d'Europe de Blitz"]
[Date "2024.12.09"]
[White "Yuste Valenzuela, Alejandro"]
[Black "Krallis, Christos"]
[WhiteElo "2150"]
[BlackElo "2383"]
[Round "9.43"]
[Result "0-1"]
[TimeControl "180+2"]

1. e4 {[%emt 00:00:01] [%clk 00:03:03]} c5 {[%emt 00:00:03] [%clk 00:03:02]} 2.
d4 {[%emt 00:00:01] [%clk 00:03:04]} cxd4 {[%emt 00:00:01] [%clk 00:03:02]} 3.
c3 {[%clk 00:03:05]} d3 {[%emt 00:00:01] [%clk 00:03:03]} 4. Bxd3 {[%emt
00:00:02] [%clk 00:03:06]} Nc6 {[%emt 00:00:01] [%clk 00:03:03]} 5. Nf3 {[%emt
00:00:03] [%clk 00:03:05]} g6 {[%emt 00:00:01] [%clk 00:03:04]} 6. O-O {[%emt
00:00:06] [%clk 00:03:01]} Bg7 {[%emt 00:00:01] [%clk 00:03:04]} 7. c4 {[%emt
00:00:02] [%clk 00:03:01]} d6 {[%emt 00:00:01] [%clk 00:03:05]} 8. Nc3 {[%emt
00:00:02] [%clk 00:03:02]} Nf6 {[%emt 00:00:02] [%clk 00:03:05]} 9. Re1 {[%emt
00:00:05] [%clk 00:02:58]} O-O {[%emt 00:00:03] [%clk 00:03:04]} 10. h3 {[%emt
00:00:01] [%clk 00:02:59]} Nd7 {[%emt 00:00:24] [%clk 00:02:42]} 11. Bf1 {[%emt
00:00:11] [%clk 00:02:50]} Nc5 {[%emt 00:00:06] [%clk 00:02:38]} 12. a3 {[%emt
00:00:15] [%clk 00:02:38]} a5 {[%emt 00:00:15] [%clk 00:02:25]} 13. Qc2 {[%emt
00:00:05] [%clk 00:02:34]} a4 {[%emt 00:00:08] [%clk 00:02:19]} 14. Be3 {[%emt
00:00:03] [%clk 00:02:34]} Qa5 {[%emt 00:00:09] [%clk 00:02:12]} 15. Rad1 {[%emt
00:00:08] [%clk 00:02:27]} f5 {[%emt 00:00:15] [%clk 00:01:59]} 16. Bxc5 {[%emt
00:01:00] [%clk 00:01:31]} Qxc5 {[%emt 00:00:16] [%clk 00:01:44]} 17. Nxa4
{[%emt 00:00:08] [%clk 00:01:25]} Qa5 {[%emt 00:00:02] [%clk 00:01:44]} 18. Nc3
{[%emt 00:00:05] [%clk 00:01:22]} Bxc3 {[%emt 00:00:18] [%clk 00:01:27]} 19.
bxc3 {[%emt 00:00:07] [%clk 00:01:18]} Qxa3 {[%emt 00:00:08] [%clk 00:01:21]}
20. e5 {[%emt 00:00:05] [%clk 00:01:15]} Bd7 {[%emt 00:00:44] [%clk 00:00:40]}
21. exd6 {[%emt 00:00:04] [%clk 00:01:12]} exd6 {[%emt 00:00:01] [%clk
00:00:40]} 22. Qd2 {[%emt 00:00:08] [%clk 00:01:07]} Rf6 {[%emt 00:00:23] [%clk
00:00:19]} 23. h4 {[%emt 00:00:07] [%clk 00:01:02]} Qc5 {[%emt 00:00:06] [%clk
00:00:16]} 24. h5 {[%emt 00:00:05] [%clk 00:00:59]} Raf8 {[%emt 00:00:04] [%clk
00:00:13]} 25. Qg5 {[%emt 00:00:15] [%clk 00:00:46]} Kg7 {[%emt 00:00:09] [%clk
00:00:06]} 26. h6+ {[%emt 00:00:02] [%clk 00:00:46]} Kg8 {[%clk 00:00:07]} 27.
Rd2 {[%emt 00:00:08] [%clk 00:00:40]} Re6 {[%emt 00:00:05] [%clk 00:00:05]} 28.
Rxe6 {[%emt 00:00:04] [%clk 00:00:38]} Bxe6 {[%clk 00:00:06]} 29. Nd4 {[%clk
00:00:39]} Nxd4 {[%emt 00:00:02] [%clk 00:00:06]} 30. cxd4 {[%emt 00:00:03]
[%clk 00:00:39]} Qc7 {[%clk 00:00:06]} 31. d5 {[%emt 00:00:05] [%clk 00:00:37]}
Bc8 {[%emt 00:00:03] [%clk 00:00:05]} 32. Re2 {[%emt 00:00:03] [%clk 00:00:35]}
Rf7 {[%emt 00:00:04] [%clk 00:00:04]} 33. Re8+ {[%emt 00:00:01] [%clk 00:00:36]}
Rf8 {[%emt 00:00:01] [%clk 00:00:05]} 34. Re7 {[%emt 00:00:01] [%clk 00:00:37]}
Qd8 {[%emt 00:00:03] [%clk 00:00:04]} 35. Rg7+ {[%emt 00:00:08] [%clk 00:00:31]}
Kh8 {[%clk 00:00:06]} 36. Qe3 {[%emt 00:00:05] [%clk 00:00:28]} Qf6 {[%emt
00:00:02] [%clk 00:00:06]} 37. Qb6 {[%emt 00:00:07] [%clk 00:00:24]} f4 {[%emt
00:00:01] [%clk 00:00:07]} 38. Qc7 {[%emt 00:00:02] [%clk 00:00:24]} f3 {[%emt
00:00:04] [%clk 00:00:04]} 39. Rxh7+ {[%emt 00:00:02] [%clk 00:00:24]} Kg8
{[%clk 00:00:06]} 40. Rg7+ {[%emt 00:00:01] [%clk 00:00:25]} Kh8 {[%clk
00:00:08]} 41. gxf3 {[%emt 00:00:05] [%clk 00:00:22]} Qg5+ {[%emt 00:00:02]
[%clk 00:00:08]} 42. Bg2 {[%clk 00:00:23]} Qc1+ {[%emt 00:00:03] [%clk
00:00:08]} 43. Bf1 {[%emt 00:00:05] [%clk 00:00:19]} Qg5+ {[%emt 00:00:02] [%clk
00:00:09]} 44. Bg2 {[%clk 00:00:21]} Qc1+ {[%emt 00:00:01] [%clk 00:00:10]} 45.
Bf1 {[%emt 00:00:03] [%clk 00:00:19]} Qxh6 {[%emt 00:00:05] [%clk 00:00:07]} 46.
Rf7 {[%emt 00:00:04] [%clk 00:00:18]} Re8 {[%emt 00:00:03] [%clk 00:00:06]} 47.
Re7 {[%emt 00:00:03] [%clk 00:00:17]} Qg5+ {[%emt 00:00:01] [%clk 00:00:07]} 48.
Bg2 {[%clk 00:00:17]} Qxe7 {[%emt 00:00:01] [%clk 00:00:08]} 49. Qa5 {[%emt
00:00:02] [%clk 00:00:17]} Qe1+ {[%clk 00:00:08]} 50. Kh2 {[%emt 00:00:01] [%clk
00:00:19]} Qxa5 {[%emt 00:00:01] [%clk 00:00:09]} 0-1

[Site "Europe Echecs"]

[Event "Championnat d'Europe de Blitz"]
[Date "2024.12.09"]
[White "Larkin, Vladyslav"]
[Black "Ciric, Pavle"]
[WhiteElo "2449"]
[BlackElo "2346"]
[Round "9.44"]
[Result "1-0"]
[TimeControl "180+2"]

1. e4 {[%emt 00:13:46] [%clk 00:03:03]} e6 {[%clk 00:03:04]} 2. d4 {[%clk
00:03:04]} d5 {[%emt 00:00:01] [%clk 00:03:05]} 3. Nc3 {[%emt 00:00:01] [%clk
00:03:05]} Nf6 {[%emt 00:00:01] [%clk 00:03:06]} 4. e5 {[%clk 00:03:05]} Nfd7
{[%emt 00:00:01] [%clk 00:03:07]} 5. Nce2 {[%clk 00:03:07]} c5 {[%emt 00:00:01]
[%clk 00:03:08]} 6. c3 {[%clk 00:03:08]} Nc6 {[%emt 00:00:01] [%clk 00:03:10]}
7. Nf3 {[%clk 00:03:09]} Be7 {[%emt 00:00:12] [%clk 00:03:00]} 8. g3 {[%emt
00:00:12] [%clk 00:02:58]} Qa5 {[%emt 00:00:14] [%clk 00:02:48]} 9. a3 {[%emt
00:00:13] [%clk 00:02:48]} Nxd4 {[%emt 00:00:26] [%clk 00:02:24]} 10. Nexd4
{[%emt 00:00:14] [%clk 00:02:36]} cxd4 {[%emt 00:00:01] [%clk 00:02:24]} 11. b4
{[%clk 00:02:37]} Qb6 {[%emt 00:00:01] [%clk 00:02:25]} 12. cxd4 {[%emt
00:00:04] [%clk 00:02:35]} a5 {[%emt 00:00:02] [%clk 00:02:26]} 13. b5 {[%emt
00:00:04] [%clk 00:02:32]} a4 {[%emt 00:00:03] [%clk 00:02:26]} 14. Bd3 {[%emt
00:00:06] [%clk 00:02:27]} O-O {[%emt 00:00:06] [%clk 00:02:22]} 15. O-O {[%emt
00:00:32] [%clk 00:01:58]} f6 {[%emt 00:00:05] [%clk 00:02:18]} 16. exf6 {[%emt
00:00:02] [%clk 00:01:58]} Nxf6 {[%emt 00:00:19] [%clk 00:02:01]} 17. Re1 {[%emt
00:00:01] [%clk 00:01:59]} Bd7 {[%emt 00:00:02] [%clk 00:02:02]} 18. Rb1 {[%emt
00:00:02] [%clk 00:01:59]} Be8 {[%emt 00:00:16] [%clk 00:01:47]} 19. Ne5 {[%emt
00:00:11] [%clk 00:01:51]} Bh5 {[%emt 00:00:32] [%clk 00:01:17]} 20. g4 {[%emt
00:00:31] [%clk 00:01:21]} Be8 {[%emt 00:00:34] [%clk 00:00:45]} 21. Kg2 {[%emt
00:00:17] [%clk 00:01:07]} Bd6 {[%emt 00:00:17] [%clk 00:00:30]} 22. f3 {[%emt
00:00:10] [%clk 00:00:58]} Kh8 {[%emt 00:00:07] [%clk 00:00:25]} 23. Bf1 {[%emt
00:00:12] [%clk 00:00:48]} Bxe5 {[%emt 00:00:05] [%clk 00:00:22]} 24. Rxe5
{[%emt 00:00:04] [%clk 00:00:47]} Bg6 {[%emt 00:00:01] [%clk 00:00:22]} 25. Rb4
{[%emt 00:00:04] [%clk 00:00:45]} Nd7 {[%emt 00:00:02] [%clk 00:00:23]} 26. Re1
{[%emt 00:00:06] [%clk 00:00:41]} h5 {[%emt 00:00:07] [%clk 00:00:18]} 27. h3
{[%emt 00:00:01] [%clk 00:00:41]} h4 {[%emt 00:00:06] [%clk 00:00:15]} 28. Bg5
{[%emt 00:00:02] [%clk 00:00:41]} Rac8 {[%emt 00:00:07] [%clk 00:00:10]} 29. Re3
{[%emt 00:00:16] [%clk 00:00:26]} Qc7 {[%emt 00:00:08] [%clk 00:00:05]} 30. Qe1
{[%emt 00:00:04] [%clk 00:00:23]} Qc2+ {[%emt 00:00:04] [%clk 00:00:04]} 31. Re2
{[%emt 00:00:04] [%clk 00:00:20]} Qc3 {[%emt 00:00:01] [%clk 00:00:05]} 32.
Qxh4+ {[%emt 00:00:03] [%clk 00:00:19]} Kg8 {[%emt 00:00:02]} 33. Re3 {[%clk
00:00:19]} Qc2+ {[%emt 00:00:02] [%clk 00:00:06]} 34. Qf2 {[%emt 00:00:03] [%clk
00:00:18]} Qxf2+ {[%emt 00:00:03] [%clk 00:00:05]} 35. Kxf2 {[%clk 00:00:19]}
Rc2+ {[%emt 00:00:01] [%clk 00:00:06]} 36. Kg3 {[%emt 00:00:01] [%clk 00:00:20]}
Rc1 {[%clk 00:00:07]} 37. Bg2 {[%emt 00:00:01] [%clk 00:00:21]} Re8 {[%emt
00:00:05] [%clk 00:00:04]} 38. Rxa4 {[%emt 00:00:02] [%clk 00:00:21]} Rb1 {[%clk
00:00:05]} 39. Rb4 {[%emt 00:00:02] [%clk 00:00:22]} Rxb4 {[%emt 00:00:02] [%clk
00:00:05]} 40. axb4 {[%clk 00:00:23]} Nb6 {[%clk 00:00:06]} 41. Bf1 {[%emt
00:00:05] [%clk 00:00:21]} Kf7 {[%clk 00:00:07]} 42. h4 {[%emt 00:00:01] [%clk
00:00:22]} Ra8 {[%emt 00:00:06] [%clk 00:00:04]} 43. h5 {[%emt 00:00:01] [%clk
00:00:23]} Bh7 {[%emt 00:00:01] [%clk 00:00:05]} 44. Rc3 {[%clk 00:00:23]} Rc8
{[%emt 00:00:02] [%clk 00:00:05]} 45. Rc5 {[%emt 00:00:04] [%clk 00:00:22]} Ke8
{[%emt 00:00:02] [%clk 00:00:05]} 46. Bf4 {[%emt 00:00:02] [%clk 00:00:22]} Kd7
{[%emt 00:00:01] [%clk 00:00:06]} 47. Be5 {[%clk 00:00:23]} g5 {[%emt 00:00:03]
[%clk 00:00:05]} 48. Rxc8 {[%emt 00:00:06] [%clk 00:00:19]} Nxc8 {[%emt
00:00:02] [%clk 00:00:05]} 49. Bf6 {[%emt 00:00:01] [%clk 00:00:20]} Na7 {[%emt
00:00:03] [%clk 00:00:04]} 50. Bxg5 {[%emt 00:00:02] [%clk 00:00:20]} Nc8 {[%emt
00:00:03] [%clk 00:00:03]} 51. Bf4 {[%clk 00:00:22]} Ne7 {[%emt 00:00:01] [%clk
00:00:03]} 52. Be5 {[%emt 00:00:01] [%clk 00:00:23]} Bc2 {[%emt 00:00:02] [%clk
00:00:03]} 53. Kf2 {[%emt 00:00:05] [%clk 00:00:20]} Ng8 {[%emt 00:00:01] [%clk
00:00:04]} 54. g5 {[%emt 00:00:01] [%clk 00:00:21]} Bf5 {[%emt 00:00:02] [%clk
00:00:05]} 55. Ke3 {[%emt 00:00:03]} Ne7 {[%clk 00:00:05]} 56. g6 {[%emt
00:00:03] [%clk 00:00:21]} Ng8 {[%emt 00:00:02] [%clk 00:00:05]} 57. Bd3 {[%emt
00:00:02] [%clk 00:00:20]} b6 {[%emt 00:00:02] [%clk 00:00:06]} 58. Bxf5 {[%emt
00:00:02] [%clk 00:00:20]} exf5 {[%clk 00:00:06]} 59. Kf4 {[%emt 00:00:01] [%clk
00:00:21]} Ke6 {[%emt 00:00:01] [%clk 00:00:08]} 60. Kg5 {[%clk 00:00:22]} Ne7
{[%emt 00:00:03] [%clk 00:00:07]} 61. h6 {[%clk 00:00:23]} 1-0

[Site "Europe Echecs"]